[Event "Titled Tuesday Blitz May 11 2021"]
[White "Ivanisevic, Ivan"]
[Black "Jones, Gawain C B"]
[WhiteFideId "912417"]
[BlackFideId "409561"]
[WhiteElo "2499"]
[BlackElo "2657"]
[Result "1-0"]
[Round "08"]
[TimeControl "180+1"]
[Date "2021.05.11"]
[WhiteClock "0:00:22"]
[BlackClock "0:00:01"]

1. d4 {[%clk 0:03:00]}  Nf6 {[%clk 0:02:59]} 2. c4 {[%clk 0:03:01]}  c5 {[%clk 0:02:59]} 3. d5 {[%clk 0:02:59]}  b5 {[%clk 0:02:59]} 4. Nf3 {[%clk 0:02:58]}  bxc4 {[%clk 0:02:59]} 5. Nc3 {[%clk 0:02:57]}  g6 {[%clk 0:02:59]} 6. e4 {[%clk 0:02:57]}  d6 {[%clk 0:02:59]} 7. Bxc4 {[%clk 0:02:57]}  Bg7 {[%clk 0:03:00]} 8. O-O {[%clk 0:02:56]}  O-O {[%clk 0:03:00]} 9. h3 {[%clk 0:02:56]}  Ba6 {[%clk 0:03:00]} 10. Bxa6 {[%clk 0:02:55]}  Nxa6 {[%clk 0:03:00]} 11. Qe2 {[%clk 0:02:54]}  Nc7 {[%clk 0:02:59]} 12. Re1 {[%clk 0:02:46]}  a5 {[%clk 0:02:58]} 13. a4 {[%clk 0:02:41]}  Qc8 {[%clk 0:02:58]} 14. Ra3 {[%clk 0:02:40]}  Qa6 {[%clk 0:02:58]} 15. Qd1 {[%clk 0:02:35]}  Nd7 {[%clk 0:02:51]} 16. Bg5 {[%clk 0:02:33]}  Rfe8 {[%clk 0:02:48]} 17. Qd2 {[%clk 0:02:27]}  Rab8 {[%clk 0:02:48]} 18. Bh6 {[%clk 0:02:23]}  Bh8 {[%clk 0:02:46]} 19. Bf4 {[%clk 0:02:15]}  Rb4 {[%clk 0:02:43]} 20. e5 {[%clk 0:02:13]}  dxe5 {[%clk 0:02:39]} 21. Nxe5 {[%clk 0:02:14]}  Rd4 {[%clk 0:02:27]} 22. Qc1 {[%clk 0:02:07]}  Nxd5 {[%clk 0:02:27]} 23. Nb5 {[%clk 0:01:33]}  Nxf4 {[%clk 0:02:15]} 24. Nxd7 {[%clk 0:01:31]}  Qc6 {[%clk 0:01:52]} 25. Rf3 {[%clk 0:01:30]}  Rxa4 {[%clk 0:01:36]} 26. Nxc5 {[%clk 0:00:57]}  Qxb5 {[%clk 0:01:10]} 27. Nxa4 {[%clk 0:00:55]}  Nd3 {[%clk 0:01:10]} 28. Rxd3 {[%clk 0:00:51]}  Qxd3 {[%clk 0:01:10]} 29. Qc6 {[%clk 0:00:51]}  Qd8 {[%clk 0:00:43]} 30. Nb6 {[%clk 0:00:47]}  e5 {[%clk 0:00:39]} 31. Nd7 {[%clk 0:00:39]}  Re6 {[%clk 0:00:31]} 32. Qd5 {[%clk 0:00:39]}  Qe8 {[%clk 0:00:28]} 33. Rd1 {[%clk 0:00:38]}  e4 {[%clk 0:00:27]} 34. Nc5 {[%clk 0:00:36]}  Re5 {[%clk 0:00:25]} 35. Qd6 {[%clk 0:00:35]}  e3 {[%clk 0:00:23]} 36. fxe3 {[%clk 0:00:33]}  Rxe3 {[%clk 0:00:23]} 37. Kf1 {[%clk 0:00:30]}  Bxb2 {[%clk 0:00:21]} 38. Nd7 {[%clk 0:00:27]}  Re6 {[%clk 0:00:10]} 39. Qd2 {[%clk 0:00:26]}  Bg7 {[%clk 0:00:04]} 40. Rb1 {[%clk 0:00:25]}  h5 {[%clk 0:00:02]} 41. Rb8 {[%clk 0:00:25]}  a4 {[%clk 0:00:02]} 42. Rxe8+ {[%clk 0:00:23]}  Rxe8 {[%clk 0:00:03]} 43. Qb4 {[%clk 0:00:23]}  Rd8 {[%clk 0:00:02]} 44. Qxa4 {[%clk 0:00:22]}  Kh7 {[%clk 0:00:01]} 45. Qc6 {[%clk 0:00:22]} 1-0


[Site "https://www.chess.com"]

[Event "Titled Tuesday Blitz May 11 2021"]
[White "Ivic, Velimir"]
[Black "Mohammad Fahad, Rahman"]
[WhiteFideId "950122"]
[BlackFideId "10207791"]
[WhiteElo "2509"]
[BlackElo "2323"]
[Result "1-0"]
[Round "08"]
[TimeControl "180+1"]
[Date "2021.05.11"]
[WhiteClock "0:01:45"]
[BlackClock "0:00:09"]

1. e4 {[%clk 0:03:00]}  c5 {[%clk 0:02:58]} 2. Nf3 {[%clk 0:03:01]}  d6 {[%clk 0:02:59]} 3. d4 {[%clk 0:03:01]}  cxd4 {[%clk 0:03:00]} 4. Nxd4 {[%clk 0:03:02]}  Nf6 {[%clk 0:03:00]} 5. Nc3 {[%clk 0:03:03]}  Nc6 {[%clk 0:03:00]} 6. Bg5 {[%clk 0:02:57]}  e6 {[%clk 0:03:00]} 7. Be2 {[%clk 0:02:43]}  Qb6 {[%clk 0:02:51]} 8. Nb3 {[%clk 0:02:43]}  a6 {[%clk 0:02:46]} 9. g4 {[%clk 0:02:43]}  Be7 {[%clk 0:02:19]} 10. Be3 {[%clk 0:02:42]}  Qc7 {[%clk 0:02:19]} 11. g5 {[%clk 0:02:43]}  Nd7 {[%clk 0:02:20]} 12. a4 {[%clk 0:02:43]}  Nce5 {[%clk 0:02:16]} 13. h4 {[%clk 0:02:34]}  Nc4 {[%clk 0:02:13]} 14. Bc1 {[%clk 0:02:33]}  b6 {[%clk 0:02:04]} 15. Qd4 {[%clk 0:02:25]}  Nce5 {[%clk 0:01:35]} 16. f4 {[%clk 0:02:24]}  Ng6 {[%clk 0:01:06]} 17. Qxg7 {[%clk 0:02:21]}  Nf6 {[%clk 0:00:52]} 18. h5 {[%clk 0:02:20]}  Rg8 {[%clk 0:00:51]} 19. gxf6 {[%clk 0:02:21]}  Rxg7 {[%clk 0:00:39]} 20. fxg7 {[%clk 0:02:21]}  Bh4+ {[%clk 0:00:39]} 21. Rxh4 {[%clk 0:02:19]}  Ne7 {[%clk 0:00:39]} 22. Rg4 {[%clk 0:01:58]}  Ng8 {[%clk 0:00:38]} 23. Be3 {[%clk 0:01:58]}  Bb7 {[%clk 0:00:33]} 24. O-O-O {[%clk 0:01:58]}  O-O-O {[%clk 0:00:34]} 25. Rgg1 {[%clk 0:01:58]}  Kb8 {[%clk 0:00:27]} 26. Kb1 {[%clk 0:01:57]}  f6 {[%clk 0:00:17]} 27. f5 {[%clk 0:01:56]}  exf5 {[%clk 0:00:17]} 28. exf5 {[%clk 0:01:57]}  Re8 {[%clk 0:00:17]} 29. Bf4 {[%clk 0:01:57]}  Rd8 {[%clk 0:00:13]} 30. Nd5 {[%clk 0:01:57]}  Bxd5 {[%clk 0:00:13]} 31. Rxd5 {[%clk 0:01:58]}  Kb7 {[%clk 0:00:14]} 32. Bf3 {[%clk 0:01:58]}  Ka7 {[%clk 0:00:14]} 33. Rgd1 {[%clk 0:01:58]}  Qxg7 {[%clk 0:00:14]} 34. Bxd6 {[%clk 0:01:58]}  Ne7 {[%clk 0:00:10]} 35. Bb8+ {[%clk 0:01:45]}  Rxb8 {[%clk 0:00:09]} 36. Rd7+ {[%clk 0:01:45]} 1-0


[Site "https://www.chess.com"]

[Event "Titled Tuesday Blitz May 11 2021"]
[White "Kovalev, Vladislav"]
[Black "Nakamura, Hikaru"]
[WhiteFideId "13504398"]
[BlackFideId "2016192"]
[WhiteElo "2573"]
[BlackElo "2900"]
[Result "0-1"]
[Round "08"]
[TimeControl "180+1"]
[Date "2021.05.11"]
[WhiteClock "0:00:04"]
[BlackClock "0:00:48"]

1. e4 {[%clk 0:03:00]}  g6 {[%clk 0:03:00]} 2. d4 {[%clk 0:03:01]}  Bg7 {[%clk 0:02:59]} 3. Nc3 {[%clk 0:03:01]}  a6 {[%clk 0:02:59]} 4. Be3 {[%clk 0:03:00]}  b5 {[%clk 0:02:59]} 5. Qd2 {[%clk 0:03:01]}  Bb7 {[%clk 0:02:59]} 6. f3 {[%clk 0:03:01]}  d6 {[%clk 0:02:58]} 7. h4 {[%clk 0:02:57]}  h5 {[%clk 0:02:57]} 8. Nh3 {[%clk 0:02:57]}  e6 {[%clk 0:02:58]} 9. Ng5 {[%clk 0:02:58]}  Nd7 {[%clk 0:02:58]} 10. a4 {[%clk 0:02:49]}  b4 {[%clk 0:02:53]} 11. Na2 {[%clk 0:02:49]}  c5 {[%clk 0:02:50]} 12. c3 {[%clk 0:02:47]}  bxc3 {[%clk 0:02:48]} 13. bxc3 {[%clk 0:02:48]}  Ngf6 {[%clk 0:02:46]} 14. Be2 {[%clk 0:02:45]}  O-O {[%clk 0:02:41]} 15. O-O {[%clk 0:02:46]}  Bc6 {[%clk 0:02:41]} 16. Nc1 {[%clk 0:02:35]}  Qc7 {[%clk 0:02:29]} 17. Nd3 {[%clk 0:02:32]}  Nh7 {[%clk 0:02:17]} 18. Nxh7 {[%clk 0:02:24]}  Kxh7 {[%clk 0:02:18]} 19. dxc5 {[%clk 0:01:50]}  dxc5 {[%clk 0:02:15]} 20. Nxc5 {[%clk 0:01:50]}  Rfd8 {[%clk 0:02:06]} 21. Nxa6 {[%clk 0:01:26]}  Qc8 {[%clk 0:01:47]} 22. Nb4 {[%clk 0:01:26]}  Bxa4 {[%clk 0:01:43]} 23. Bd4 {[%clk 0:01:00]}  e5 {[%clk 0:01:27]} 24. Be3 {[%clk 0:00:58]}  Nc5 {[%clk 0:01:27]} 25. Qb2 {[%clk 0:00:43]}  Rb8 {[%clk 0:01:27]} 26. Kh2 {[%clk 0:00:39]}  Be8 {[%clk 0:01:21]} 27. Ra7 {[%clk 0:00:38]}  Na4 {[%clk 0:01:20]} 28. Qa1 {[%clk 0:00:12]}  Qxc3 {[%clk 0:01:18]} 29. Nd5 {[%clk 0:00:08]}  Rxd5 {[%clk 0:01:13]} 30. Qxc3 {[%clk 0:00:08]}  Nxc3 {[%clk 0:01:14]} 31. exd5 {[%clk 0:00:09]}  Nxe2 {[%clk 0:01:14]} 32. d6 {[%clk 0:00:09]}  Rd8 {[%clk 0:01:14]} 33. Rd1 {[%clk 0:00:09]}  Nd4 {[%clk 0:01:13]} 34. Re7 {[%clk 0:00:03]}  Bf6 {[%clk 0:00:50]} 35. Bg5 {[%clk 0:00:03]}  Bxe7 {[%clk 0:00:49]} 36. dxe7 {[%clk 0:00:04]}  Nxf3+ {[%clk 0:00:48]} 0-1


[Site "https://www.chess.com"]

[Event "Titled Tuesday Blitz May 11 2021"]
[White "Murzin, Volodar"]
[Black "Keymer, Vincent"]
[WhiteFideId "44155573"]
[BlackFideId "12940690"]
[WhiteElo "2541"]
[BlackElo "2474"]
[Result "0-1"]
[Round "08"]
[TimeControl "180+1"]
[Date "2021.05.11"]
[WhiteClock "0:00:01"]
[BlackClock "0:00:08"]

1. e4 {[%clk 0:03:00]}  c6 {[%clk 0:03:00]} 2. Nf3 {[%clk 0:03:00]}  d5 {[%clk 0:03:01]} 3. exd5 {[%clk 0:03:01]}  cxd5 {[%clk 0:03:02]} 4. Ne5 {[%clk 0:03:01]}  a6 {[%clk 0:03:02]} 5. d4 {[%clk 0:03:00]}  Nf6 {[%clk 0:03:02]} 6. c4 {[%clk 0:02:59]}  g6 {[%clk 0:03:02]} 7. Nc3 {[%clk 0:02:58]}  Bg7 {[%clk 0:03:02]} 8. cxd5 {[%clk 0:02:48]}  Nxd5 {[%clk 0:03:03]} 9. Qa4+ {[%clk 0:02:45]}  Bd7 {[%clk 0:02:44]} 10. Qb3 {[%clk 0:02:22]}  Bc6 {[%clk 0:02:40]} 11. Bc4 {[%clk 0:02:16]}  e6 {[%clk 0:02:37]} 12. O-O {[%clk 0:01:37]}  O-O {[%clk 0:02:28]} 13. Rd1 {[%clk 0:01:20]}  Nxc3 {[%clk 0:02:18]} 14. bxc3 {[%clk 0:01:19]}  b5 {[%clk 0:02:14]} 15. Bxe6 {[%clk 0:01:10]}  fxe6 {[%clk 0:01:09]} 16. Qxe6+ {[%clk 0:01:08]}  Kh8 {[%clk 0:01:10]} 17. Nxc6 {[%clk 0:00:43]}  Qb6 {[%clk 0:00:46]} 18. Ba3 {[%clk 0:00:28]}  Nxc6 {[%clk 0:00:39]} 19. Bc5 {[%clk 0:00:18]}  Qb7 {[%clk 0:00:29]} 20. d5 {[%clk 0:00:16]}  Nd8 {[%clk 0:00:22]} 21. Qe3 {[%clk 0:00:09]}  Rg8 {[%clk 0:00:20]} 22. Rd3 {[%clk 0:00:06]}  Nf7 {[%clk 0:00:19]} 23. Rad1 {[%clk 0:00:03]}  Ne5 {[%clk 0:00:18]} 24. Rd4 {[%clk 0:00:04]}  Nc4 {[%clk 0:00:17]} 25. Qh3 {[%clk 0:00:04]}  Rge8 {[%clk 0:00:16]} 26. Rh4 {[%clk 0:00:04]}  Bf6 {[%clk 0:00:15]} 27. Rf4 {[%clk 0:00:03]}  Be5 {[%clk 0:00:15]} 28. Re4 {[%clk 0:00:03]}  Bg7 {[%clk 0:00:14]} 29. Rxe8+ {[%clk 0:00:03]}  Rxe8 {[%clk 0:00:13]} 30. d6 {[%clk 0:00:03]}  Qe4 {[%clk 0:00:11]} 31. g3 {[%clk 0:00:03]}  Qf3 {[%clk 0:00:10]} 32. Qf1 {[%clk 0:00:02]}  Rd8 {[%clk 0:00:10]} 33. d7 {[%clk 0:00:02]}  Qf5 {[%clk 0:00:11]} 34. Qe2 {[%clk 0:00:01]}  Qxc5 {[%clk 0:00:10]} 35. Qe8+ {[%clk 0:00:01]}  Qf8 {[%clk 0:00:10]} 36. Re1 {[%clk 0:00:02]}  Nd6 {[%clk 0:00:08]} 37. Qe6 {[%clk 0:00:01]}  Nf5 {[%clk 0:00:07]} 38. Qe8 {[%clk 0:00:01]}  Nd6 {[%clk 0:00:08]} 39. Qe6 {[%clk 0:00:01]}  Qf6 {[%clk 0:00:08]} 0-1


[Site "https://www.chess.com"]

[Event "Titled Tuesday Blitz May 11 2021"]
[White "Oparin, Grigoriy"]
[Black "Kamsky, Gata"]
[WhiteFideId "24125890"]
[BlackFideId "2000024"]
[WhiteElo "2628"]
[BlackElo "2644"]
[Result "1-0"]
[Round "08"]
[TimeControl "180+1"]
[Date "2021.05.11"]
[WhiteClock "0:00:23"]
[BlackClock "0:00:02"]

1. c4 {[%clk 0:03:00]}  e5 {[%clk 0:02:59]} 2. Nc3 {[%clk 0:03:00]}  Nc6 {[%clk 0:02:57]} 3. g3 {[%clk 0:03:01]}  Bc5 {[%clk 0:02:56]} 4. Bg2 {[%clk 0:03:01]}  Nge7 {[%clk 0:02:54]} 5. e3 {[%clk 0:03:01]}  a6 {[%clk 0:02:54]} 6. Nge2 {[%clk 0:03:01]}  Ba7 {[%clk 0:02:54]} 7. O-O {[%clk 0:03:01]}  d6 {[%clk 0:02:54]} 8. d4 {[%clk 0:02:59]}  O-O {[%clk 0:02:53]} 9. b3 {[%clk 0:02:59]}  exd4 {[%clk 0:02:52]} 10. Nxd4 {[%clk 0:03:00]}  Nxd4 {[%clk 0:02:50]} 11. exd4 {[%clk 0:03:01]}  Nf5 {[%clk 0:02:50]} 12. Ne2 {[%clk 0:03:01]}  Rb8 {[%clk 0:02:44]} 13. a4 {[%clk 0:02:50]}  c6 {[%clk 0:02:43]} 14. Bf4 {[%clk 0:02:49]}  Qf6 {[%clk 0:02:33]} 15. c5 {[%clk 0:02:46]}  g5 {[%clk 0:02:33]} 16. Bd2 {[%clk 0:02:23]}  dxc5 {[%clk 0:02:26]} 17. dxc5 {[%clk 0:02:24]}  Be6 {[%clk 0:02:24]} 18. Qc1 {[%clk 0:02:12]}  h6 {[%clk 0:02:23]} 19. Bc3 {[%clk 0:02:12]}  Qg6 {[%clk 0:02:13]} 20. Bb2 {[%clk 0:02:03]}  Rbd8 {[%clk 0:02:08]} 21. Qc3 {[%clk 0:02:01]}  f6 {[%clk 0:02:02]} 22. Rfe1 {[%clk 0:02:01]}  Bd5 {[%clk 0:01:54]} 23. Bh3 {[%clk 0:01:54]}  Bb8 {[%clk 0:01:47]} 24. Qb4 {[%clk 0:01:26]}  Rf7 {[%clk 0:01:38]} 25. Rad1 {[%clk 0:01:27]}  Bc7 {[%clk 0:01:15]} 26. Nc3 {[%clk 0:01:27]}  a5 {[%clk 0:01:04]} 27. Qg4 {[%clk 0:01:27]}  Ne7 {[%clk 0:00:47]} 28. Nxd5 {[%clk 0:01:25]}  Nxd5 {[%clk 0:00:43]} 29. Qe6 {[%clk 0:01:17]}  Qc2 {[%clk 0:00:29]} 30. Ba1 {[%clk 0:01:05]}  Kg7 {[%clk 0:00:26]} 31. Bf5 {[%clk 0:00:56]}  Qxb3 {[%clk 0:00:24]} 32. Bb1 {[%clk 0:00:45]}  Qf3 {[%clk 0:00:21]} 33. Rd3 {[%clk 0:00:41]}  Qh5 {[%clk 0:00:14]} 34. Qf5 {[%clk 0:00:40]}  Kf8 {[%clk 0:00:11]} 35. Rd2 {[%clk 0:00:26]}  Be5 {[%clk 0:00:08]} 36. Bxe5 {[%clk 0:00:21]}  fxe5 {[%clk 0:00:08]} 37. Qxe5 {[%clk 0:00:22]}  Kg8 {[%clk 0:00:02]} 38. Bf5 {[%clk 0:00:23]} 1-0


[Site "https://www.chess.com"]

[Event "Titled Tuesday Blitz May 11 2021"]
[White "Praggnanandhaa R"]
[Black "Jarovinsky, Alexey"]
[WhiteFideId "25059530"]
[BlackFideId "14115131"]
[WhiteElo "2555"]
[BlackElo "2446"]
[Result "1-0"]
[Round "08"]
[TimeControl "180+1"]
[Date "2021.05.11"]
[WhiteClock "0:00:36"]
[BlackClock "0:00:15"]

1. d4 {[%clk 0:03:00]}  e6 {[%clk 0:02:58]} 2. c4 {[%clk 0:02:59]}  Bb4+ {[%clk 0:02:58]} 3. Nc3 {[%clk 0:02:55]}  Bxc3+ {[%clk 0:02:53]} 4. bxc3 {[%clk 0:02:53]}  Ne7 {[%clk 0:02:54]} 5. e4 {[%clk 0:02:51]}  d6 {[%clk 0:02:53]} 6. Bd3 {[%clk 0:02:49]}  e5 {[%clk 0:02:51]} 7. f4 {[%clk 0:02:47]}  exf4 {[%clk 0:02:42]} 8. Bxf4 {[%clk 0:02:46]}  O-O {[%clk 0:02:38]} 9. Nf3 {[%clk 0:02:46]}  Nd7 {[%clk 0:02:21]} 10. O-O {[%clk 0:02:41]}  Ng6 {[%clk 0:01:58]} 11. Bg5 {[%clk 0:02:39]}  f6 {[%clk 0:01:56]} 12. Bd2 {[%clk 0:02:30]}  Nb6 {[%clk 0:01:52]} 13. Qe2 {[%clk 0:02:22]}  Re8 {[%clk 0:01:42]} 14. Rae1 {[%clk 0:02:20]}  Bg4 {[%clk 0:01:37]} 15. h3 {[%clk 0:02:18]}  Bxf3 {[%clk 0:01:37]} 16. Rxf3 {[%clk 0:02:18]}  Nd7 {[%clk 0:01:30]} 17. Qf2 {[%clk 0:02:16]}  c5 {[%clk 0:01:22]} 18. h4 {[%clk 0:02:16]}  Ngf8 {[%clk 0:01:18]} 19. h5 {[%clk 0:02:15]}  h6 {[%clk 0:01:17]} 20. Rg3 {[%clk 0:02:14]}  Kh8 {[%clk 0:01:14]} 21. Ree3 {[%clk 0:02:06]}  Ne6 {[%clk 0:01:07]} 22. Ref3 {[%clk 0:01:35]}  Ng5 {[%clk 0:00:56]} 23. Bxg5 {[%clk 0:01:28]}  fxg5 {[%clk 0:00:57]} 24. Rf7 {[%clk 0:01:28]}  Rf8 {[%clk 0:00:53]} 25. Rgf3 {[%clk 0:01:27]}  Qe8 {[%clk 0:00:37]} 26. Bc2 {[%clk 0:00:58]}  Rxf7 {[%clk 0:00:30]} 27. Rxf7 {[%clk 0:00:58]}  Nf6 {[%clk 0:00:30]} 28. Rxf6 {[%clk 0:00:57]}  gxf6 {[%clk 0:00:28]} 29. Qxf6+ {[%clk 0:00:58]}  Kg8 {[%clk 0:00:27]} 30. Qxh6 {[%clk 0:00:58]}  Qe7 {[%clk 0:00:25]} 31. e5 {[%clk 0:00:56]}  dxe5 {[%clk 0:00:18]} 32. Be4 {[%clk 0:00:55]}  Rd8 {[%clk 0:00:18]} 33. dxc5 {[%clk 0:00:44]}  Qxc5+ {[%clk 0:00:16]} 34. Kh2 {[%clk 0:00:40]}  Qe3 {[%clk 0:00:16]} 35. Qg6+ {[%clk 0:00:38]}  Kf8 {[%clk 0:00:16]} 36. Qf6+ {[%clk 0:00:36]}  Kg8 {[%clk 0:00:15]} 37. Qxd8+ {[%clk 0:00:36]} 1-0


[Site "https://www.chess.com"]

[Event "Titled Tuesday Blitz May 11 2021"]
[White "Shipov, Sergei"]
[Black "Narayanan.S.L"]
[WhiteFideId "4113624"]
[BlackFideId "5058422"]
[WhiteElo "2766"]
[BlackElo "2617"]
[Result "1-0"]
[Round "08"]
[TimeControl "180+1"]
[Date "2021.05.11"]
[WhiteClock "0:00:22"]
[BlackClock "0:00:53"]

1. d4 {[%clk 0:03:00]}  Nf6 {[%clk 0:02:59]} 2. c4 {[%clk 0:03:00]}  g6 {[%clk 0:02:59]} 3. Nc3 {[%clk 0:03:00]}  Bg7 {[%clk 0:02:59]} 4. e4 {[%clk 0:03:00]}  O-O {[%clk 0:02:59]} 5. Be2 {[%clk 0:03:01]}  Nc6 {[%clk 0:02:58]} 6. Nf3 {[%clk 0:02:47]}  d6 {[%clk 0:02:57]} 7. Be3 {[%clk 0:02:44]}  Bg4 {[%clk 0:02:54]} 8. d5 {[%clk 0:02:42]}  Bxf3 {[%clk 0:02:52]} 9. Bxf3 {[%clk 0:02:40]}  Ne5 {[%clk 0:02:52]} 10. Be2 {[%clk 0:02:40]}  Re8 {[%clk 0:02:51]} 11. Qb3 {[%clk 0:02:39]}  c5 {[%clk 0:02:40]} 12. O-O {[%clk 0:02:35]}  Rb8 {[%clk 0:02:39]} 13. h3 {[%clk 0:02:33]}  a6 {[%clk 0:02:33]} 14. a4 {[%clk 0:02:32]}  e6 {[%clk 0:02:32]} 15. a5 {[%clk 0:02:19]}  exd5 {[%clk 0:02:31]} 16. cxd5 {[%clk 0:02:19]}  Ned7 {[%clk 0:02:15]} 17. Qc2 {[%clk 0:02:17]}  Qe7 {[%clk 0:02:11]} 18. Bf3 {[%clk 0:02:12]}  Ne5 {[%clk 0:02:10]} 19. Be2 {[%clk 0:02:12]}  Ned7 {[%clk 0:02:09]} 20. Bf3 {[%clk 0:01:53]}  Rbc8 {[%clk 0:02:08]} 21. Rfe1 {[%clk 0:01:51]}  c4 {[%clk 0:02:07]} 22. Ra4 {[%clk 0:01:38]}  h5 {[%clk 0:02:04]} 23. Rb4 {[%clk 0:01:35]}  Rc7 {[%clk 0:01:37]} 24. Bd4 {[%clk 0:01:28]}  Nh7 {[%clk 0:01:34]} 25. Bxg7 {[%clk 0:01:21]}  Kxg7 {[%clk 0:01:35]} 26. Be2 {[%clk 0:01:22]}  Rec8 {[%clk 0:01:34]} 27. Qd2 {[%clk 0:01:20]}  Nhf6 {[%clk 0:01:34]} 28. Bf1 {[%clk 0:01:20]}  h4 {[%clk 0:01:27]} 29. f4 {[%clk 0:01:19]}  Kg8 {[%clk 0:01:27]} 30. e5 {[%clk 0:01:19]}  Nh5 {[%clk 0:01:18]} 31. Ne4 {[%clk 0:01:14]}  Nxe5 {[%clk 0:01:04]} 32. fxe5 {[%clk 0:01:11]}  Qxe5 {[%clk 0:01:05]} 33. Rb6 {[%clk 0:00:51]}  Re7 {[%clk 0:00:55]} 34. Nxd6 {[%clk 0:00:20]}  Qxe1 {[%clk 0:00:55]} 35. Qxe1 {[%clk 0:00:20]}  Rxe1 {[%clk 0:00:55]} 36. Nxc8 {[%clk 0:00:21]}  Ng3 {[%clk 0:00:56]} 37. Kf2 {[%clk 0:00:21]}  Rxf1+ {[%clk 0:00:56]} 38. Ke3 {[%clk 0:00:22]}  Rf3+ {[%clk 0:00:53]} 1-0


[Site "https://www.chess.com"]

[Event "Titled Tuesday Blitz May 11 2021"]
[White "Svane, Rasmus"]
[Black "Dang, Hoang Son"]
[WhiteFideId "4657101"]
[BlackFideId "12402435"]
[WhiteElo "2669"]
[BlackElo "2248"]
[Result "1-0"]
[Round "08"]
[TimeControl "180+1"]
[Date "2021.05.11"]
[WhiteClock "0:00:14"]
[BlackClock "0:00:19"]

1. Nf3 {[%clk 0:03:00]}  g6 {[%clk 0:03:00]} 2. e4 {[%clk 0:03:00]}  Bg7 {[%clk 0:03:00]} 3. d4 {[%clk 0:03:01]}  d6 {[%clk 0:03:01]} 4. Bd3 {[%clk 0:03:01]}  Nf6 {[%clk 0:03:01]} 5. O-O {[%clk 0:03:01]}  O-O {[%clk 0:03:01]} 6. h3 {[%clk 0:03:02]}  Nc6 {[%clk 0:03:01]} 7. c3 {[%clk 0:03:03]}  e5 {[%clk 0:03:01]} 8. Re1 {[%clk 0:03:03]}  Bd7 {[%clk 0:03:00]} 9. Nbd2 {[%clk 0:03:02]}  a6 {[%clk 0:02:59]} 10. Nf1 {[%clk 0:03:02]}  b5 {[%clk 0:02:59]} 11. Ng3 {[%clk 0:03:03]}  Re8 {[%clk 0:02:58]} 12. Be3 {[%clk 0:02:58]}  d5 {[%clk 0:02:56]} 13. dxe5 {[%clk 0:02:53]}  Nxe5 {[%clk 0:02:53]} 14. Nxe5 {[%clk 0:02:54]}  Rxe5 {[%clk 0:02:50]} 15. f4 {[%clk 0:02:42]}  Re8 {[%clk 0:02:42]} 16. e5 {[%clk 0:02:40]}  Ne4 {[%clk 0:02:30]} 17. Nxe4 {[%clk 0:02:39]}  dxe4 {[%clk 0:02:31]} 18. Bxe4 {[%clk 0:02:39]}  c6 {[%clk 0:02:26]} 19. Qd2 {[%clk 0:02:04]}  Qc7 {[%clk 0:02:13]} 20. Rad1 {[%clk 0:02:04]}  Rad8 {[%clk 0:02:12]} 21. Qf2 {[%clk 0:01:44]}  Rc8 {[%clk 0:02:04]} 22. b4 {[%clk 0:01:34]}  Bf8 {[%clk 0:01:53]} 23. Bc5 {[%clk 0:01:31]}  Be6 {[%clk 0:01:49]} 24. a3 {[%clk 0:01:26]}  Bxc5 {[%clk 0:01:38]} 25. Qxc5 {[%clk 0:01:27]}  a5 {[%clk 0:01:37]} 26. Rd6 {[%clk 0:01:25]}  axb4 {[%clk 0:01:36]} 27. axb4 {[%clk 0:01:26]}  Qe7 {[%clk 0:01:30]} 28. Bxc6 {[%clk 0:01:03]}  Red8 {[%clk 0:01:20]} 29. Red1 {[%clk 0:01:03]}  Rf8 {[%clk 0:01:16]} 30. Qxb5 {[%clk 0:00:58]}  Qh4 {[%clk 0:01:13]} 31. Qf1 {[%clk 0:00:55]}  Rc7 {[%clk 0:01:03]} 32. b5 {[%clk 0:00:53]}  Rb8 {[%clk 0:01:00]} 33. c4 {[%clk 0:00:52]}  Qg3 {[%clk 0:00:59]} 34. c5 {[%clk 0:00:49]}  Bxh3 {[%clk 0:00:58]} 35. Qf3 {[%clk 0:00:45]}  Qxf3 {[%clk 0:00:52]} 36. Bxf3 {[%clk 0:00:40]}  Rxb5 {[%clk 0:00:47]} 37. gxh3 {[%clk 0:00:37]}  Rcxc5 {[%clk 0:00:47]} 38. Kg2 {[%clk 0:00:34]}  h5 {[%clk 0:00:47]} 39. h4 {[%clk 0:00:33]}  Rb2+ {[%clk 0:00:46]} 40. R1d2 {[%clk 0:00:33]}  Rb4 {[%clk 0:00:45]} 41. R6d4 {[%clk 0:00:32]}  Rb3 {[%clk 0:00:45]} 42. R2d3 {[%clk 0:00:31]}  Rc2+ {[%clk 0:00:45]} 43. Kg3 {[%clk 0:00:29]}  Rb1 {[%clk 0:00:46]} 44. Rd1 {[%clk 0:00:30]}  Rb3 {[%clk 0:00:46]} 45. R4d3 {[%clk 0:00:27]}  Rb6 {[%clk 0:00:46]} 46. Rd8+ {[%clk 0:00:26]}  Kg7 {[%clk 0:00:46]} 47. R8d7 {[%clk 0:00:27]}  Rc3 {[%clk 0:00:45]} 48. R1d3 {[%clk 0:00:27]}  Rc1 {[%clk 0:00:44]} 49. Bd5 {[%clk 0:00:26]}  Rg1+ {[%clk 0:00:39]} 50. Kf2 {[%clk 0:00:22]}  Rg4 {[%clk 0:00:39]} 51. Rxf7+ {[%clk 0:00:22]}  Kh6 {[%clk 0:00:39]} 52. Bf3 {[%clk 0:00:21]}  Rb2+ {[%clk 0:00:38]} 53. Ke3 {[%clk 0:00:20]}  Rxh4 {[%clk 0:00:38]} 54. Rdd7 {[%clk 0:00:20]}  Rb3+ {[%clk 0:00:37]} 55. Ke4 {[%clk 0:00:20]}  Rb4+ {[%clk 0:00:37]} 56. Ke3 {[%clk 0:00:17]}  Rb3+ {[%clk 0:00:30]} 57. Kf2 {[%clk 0:00:17]}  Rh2+ {[%clk 0:00:19]} 58. Kg3 {[%clk 0:00:14]} 1-0


[Site "https://www.chess.com"]